Cogmind - Beta 10 X2 @@@ ROGUE MODE // 2020.09.05 @ 18:45:44 Player: PlasticHeart Result: Self-destructed Performance ------------- Evolutions (3) 1500 Regions Visited (6) 1200 Robots Destroyed (89) 445 Value Destroyed (1876) 1876 Prototype IDs (32) 640 Alien Tech Used (0) 0 Bonus (408) 408 TOTAL SCORE: 6069 Bonus ------- High Alert Combat Kills 108 Aligned with FarCom 300 Cogmind --------- Core Integrity 640/700 Matter 280/300 Energy 26/100 System Corruption 0% Temperature Cool (2) Movement Flying (37) Location -7/Factory Parts ------- > --- POWER (1) -------- (None) > --- PROPULSION (4) --- Cesium-ion Thruster Cesium-ion Thruster Cesium-ion Thruster > --- UTILITY (6) ------ Medium Storage Unit Advanced Signal Interpreter Hacking Suite Hacking Suite Hacking Suite System Shield > --- WEAPON (2) ------- Improved Datajack Katana > --- INVENTORY (8) ---- Aerolev Unit Aerolev Unit Aerolev Unit Modified TNC AWS/Autocannon Peak State ------------ > --- POWER ------------ Light Nuclear Core > --- PROPULSION ------- Potential Leg Potential Leg Armored Huge Wheel > --- UTILITY ---------- Medium Storage Unit Medium Storage Unit Large Storage Unit Insulated Plating > --- WEAPON ----------- Minigun Flak Cannon > --- INVENTORY -------- Light Nuclear Core Light Nuclear Core Medium Storage Unit Long-range Terrain Scanner Advanced Terrain Scan Processor Modified TNC Hacking Suite Hacking Suite Hacking Suite Medium Laser Light Assault Rifle Flak Cannon Flak Cannon AWS/Autocannon Heavy Mace [Rating: 50] Favorites ----------- Power Light Ion Engine Engine Light Ion Engine Power Core Light Nuclear Core Propulsion Armored Treads Treads Armored Treads Leg Potential Leg Wheel Wheel Hover Unit Aerolev Unit Flight Unit Cesium-ion Thruster Utility Medium Storage Unit Device Improved Heat Sink Storage Medium Storage Unit Processor Advanced Signal Interpreter Hackware Hacking Suite Protection Medium Armor Plating Weapon Flak Cannon Energy Gun Small Laser Ballistic Gun Light Assault Rifle Ballistic Cannon Flak Cannon Launcher Grenade Launcher Slashing Weapon Katana Special Melee Weapon Improved Datajack Build | -11 -10 -10 -10 -9 -8 -7 ------- Run | Scr Mat Min Exi Min Mat Fac Slots Evolved 6 | . . . . . 4 2 Power . | . . . . . . . Propulsion 2 | . . . . . 2 . Utility 4 | . . . . . 2 2 Weapon . | . . . . . . . Parts Attached 67 | 7 9 4 2 5 24 16 Power 9 | 1 1 1 . 1 3 2 Engine 5 | 1 1 1 . 1 1 . Core 4 | . . . . . 2 2 Reactor . | . . . . . . . Propulsion 19 | 2 2 2 2 . 7 4 Treads 5 | . . . . . 5 . Leg 2 | . . . 2 . . . Wheel 7 | 2 2 2 . . 1 . Hover 1 | . . . . . 1 . Flight 4 | . . . . . . 4 Utility 19 | 2 2 . . . 7 8 Device 2 | . . . . . 1 1 Storage 8 | 2 2 . . . 4 . Processor 2 | . . . . . . 2 Hackware 5 | . . . . . . 5 Protection 2 | . . . . . 2 . Artifact . | . . . . . . . Weapon 20 | 2 4 1 . 4 7 2 Energy Gun 1 | 1 . . . . . . Energy Cannon . | . . . . . . . Ballistic Gun 5 | 1 . 1 . 1 2 . Ballistic Cannon 11 | . 3 . . 3 5 . Launcher 1 | . 1 . . . . . Special Weapon . | . . . . . . . Impact Weapon . | . . . . . . . Slashing Weapon 1 | . . . . . . 1 Piercing Weapon . | . . . . . . . Special Melee Weapon 1 | . . . . . . 1 Unidentified Prototypes 1 | . . . . . 1 . Parts Lost 17 | . 6 1 . 1 5 4 Power 3 | . 1 . . . 1 1 Propulsion 3 | . 2 . . . . 1 Utility 4 | . . . . . 2 2 Weapon 7 | . 3 1 . 1 2 . Highest Loss Streak 6 | . 6 1 . 1 2 4 Average Slot Usage (%) 95 | . 97 100 99 100 93 95 Engine 6 | . 13 14 14 14 2 . Core 3 | . . . . . 6 6 Treads 11 | . . . . . 21 . Leg 8 | . . . 19 28 7 . Wheel 7 | . 26 28 8 . 3 . Flight 2 | . . . . . . 28 Device 2 | . . . . . 3 6 Storage 26 | . 28 28 28 28 27 8 Hackware 1 | . . . . . . 21 Protection 1 | . . . . . 2 . Ballistic Gun 6 | . 4 12 14 9 4 . Ballistic Cannon 13 | . 19 15 14 19 13 . Naked Turns . | . . . . . . . Heaviest Build 65 | 15 25 23 23 26 65 17 Greatest Support 80 | 32 32 26 60 60 80 18 Greatest Overweight (x) 4 | 1 4 1 1 . 2 . Average Overweight (x) . | . . . . . . . Largest Inventory Capacity 24 | 8 12 12 12 12 24 24 Average Capacity 14 | 6 9 12 12 12 18 8 Most Carried 24 | 4 8 8 11 12 24 24 Average Carried 12 | 3 5 6 9 11 16 8 Final Capacity 24 | 8 12 12 12 12 24 8 Final Carried 24 | 4 8 7 11 12 24 7 Class Distribution -------------------- 79% | Mutant 12% | Hauler-Mutant 7% | Hacker-Mutant Dominant Class ---------------- Mutant | -10/Materials Mutant | -10/Mines Mutant | -10/Exiles Mutant | -9/Mines Mutant | -8/Materials Hacker-Mutant | -7/Factory Resources | -11 -10 -10 -10 -9 -8 -7 ----------- Run | Scr Mat Min Exi Min Mat Fac Matter Collected 2555 | 275 157 82 . 223 1655 163 Remotely . | . . . . . . . Salvage Created 2122 | 102 242 23 . 131 1484 140 Parts 154 | 5 22 6 . 15 101 5 Haulers Intercepted 6 | . 1 . . . 5 . Recyclers Shooed 8 | . . . . 1 6 1 Parts Field Recycled . | . . . . . . . Retrieved Matter . | . . . . . . . Parts Self-Destructed . | . . . . . . . Prevented . | . . . . . . . Kills | -11 -10 -10 -10 -9 -8 -7 ------- Run | Scr Mat Min Exi Min Mat Fac Combat Hostiles Destroyed 53 | . 9 6 . 5 33 . Guns 16 | . 2 . . 3 11 . Cannons 32 | . 2 6 . 2 22 . AOE 5 | . 5 . . . . . Classes Destroyed 12 | 2 7 . . . 3 . Worker 9 | . 1 . . . 6 2 Builder 2 | . 1 . . . 1 . Tunneler 4 | 1 1 . . 1 1 . Hauler 6 | . 1 . . . 5 . Recycler 7 | 1 . . . . 5 1 Operator 4 | . 2 . . . 2 . Watcher 4 | . 1 . . . 3 . Swarmer 23 | . 3 6 . 3 11 . Grunt 20 | . 6 . . 2 12 . Duelist 1 | . . . . . 1 . Sentry 8 | . . . . . 8 . Hunter 1 | . . . . . 1 . Best Kill Streak 9 | 2 9 3 . 4 5 1 Combat Bots Only 9 | . 9 3 . 3 4 . Max Kills in Single Turn 4 | 1 4 1 . 1 2 1 Gunslinging 1 | . 1 . . . . . Exploded 4 | . 4 . . . . . Melee . | . . . . . . . Uniques/NPCs Destroyed . | . . . . . . . Combat | -11 -10 -10 -10 -9 -8 -7 -------- Run | Scr Mat Min Exi Min Mat Fac Damage Taken 3716 | . 576 236 . 193 2391 320 Core 469 | . 136 17 . 22 234 60 Absorbed by Shields . | . . . . . . . Core Remaining (%) 62 | 100 . . . 30 57 . Volleys Fired 217 | 5 30 19 . 16 147 . Largest 2 | 2 2 2 . 2 2 . Hottest 88 | 60 70 70 . 74 88 . Shots Fired 427 | 10 54 37 . 32 294 . Gun 156 | 10 16 13 . 14 103 . Cannon 267 | . 34 24 . 18 191 . Launcher 4 | . 4 . . . . . Special . | . . . . . . . Kinetic 412 | 5 44 37 . 32 294 . Thermal 11 | 5 6 . . . . . Explosive 4 | . 4 . . . . . Electromagnetic . | . . . . . . . Robot Hit Streak 14 | 2 14 6 . 5 11 . Robot Miss Streak 8 | 2 3 3 . 3 8 . Penetration Max . | . . . . . . . Secondary Targets 1 | . 1 . . . . . Max Gunslinging Chain 1 | . 1 . . . . . Shots Hit Robots 300 | 5 34 22 . 18 213 8 Core Hits 197 | 3 23 7 . 9 152 3 Critical Hits 2 | . . 1 . 1 . . Critical Kills 1 | . . 1 . . . . Critical Parts Destroyed 1 | . . . . 1 . . Melee Attacks 30 | . . . . . . 30 Impact . | . . . . . . . Slashing 29 | . . . . . . 29 Piercing . | . . . . . . . Sneak Attacks 6 | . . . . . . 6 Combat Hostiles . | . . . . . . . Follow-up Attacks . | . . . . . . . Damage Inflicted 5445 | 39 877 317 . 245 3348 619 Guns 1070 | 39 58 76 . 87 810 . Cannons 3277 | . 340 241 . 158 2538 . Explosions 479 | . 479 . . . . . Melee 619 | . . . . . . 619 Ramming . | . . . . . . . Kinetic 4313 | 15 388 317 . 245 3348 . Thermal 34 | 24 10 . . . . . Explosive 479 | . 479 . . . . . Electromagnetic . | . . . . . . . Impact . | . . . . . . . Slashing 619 | . . . . . . 619 Piercing . | . . . . . . . Highest Corruption . | . . . . . . . Average Corruption . | . . . . . . . Corruption Purged . | . . . . . . . Overload Shots . | . . . . . . . Overflow Damage 288 | . 22 . . . . 266 Projectiles 5 | . 5 . . . . . Explosions 17 | . 17 . . . . . Melee 266 | . . . . . . 266 Knockbacks 69 | . 4 4 . 2 59 . Impact . | . . . . . . . Kinetic 66 | . 4 4 . 2 56 . Secondary 3 | . . . . . 3 . Self-Inflicted Damage 69 | . 69 . . . . . Shots 4 | . 4 . . . . . Rammed . | . . . . . . . Targets Rammed . | . . . . . . . Kicked . | . . . . . . . Crushed . | . . . . . . . Highest Temperature 322 | 20 44 45 . 28 322 35 Average Temperature 42 | 15 15 18 . 11 67 22 Received Heat Transfer 1047 | . 192 . . 15 828 12 Effects 2 | . . . . . 2 . Energy Bleed 1 | . . . . . 1 . Damage (minor) 1 | . . . . . 1 . Siege Activations . | . . . . . . . Robots Corrupted . | . . . . . . . Combat Hostiles . | . . . . . . . Parts Fried . | . . . . . . . Impact Corruptions . | . . . . . . . Robots Melted . | . . . . . . . Combat Hostiles . | . . . . . . . Parts Melted . | . . . . . . . Heat Transferred 75 | 50 25 . . . . . Parts Sabotaged . | . . . . . . . Parts Stolen . | . . . . . . . Parts Stripped . | . . . . . . . Power Chain Reactions . | . . . . . . . Missiles Intercepted . | . . . . . . . Alert | -11 -10 -10 -10 -9 -8 -7 ------- Run | Scr Mat Min Exi Min Mat Fac Peak Influence 606 | 10 258 169 . 115 606 243 Average Influence 263 | 5 136 143 . 89 344 192 Maximum Alert Level 2 | . 1 . . . 2 1 Low Security (%) 38 | 100 60 100 . 100 14 57 Level 1 42 | . 39 . . . 54 42 Level 2 19 | . . . . . 30 . Level 3 . | . . . . . . . Level 4 . | . . . . . . . Level 5 . | . . . . . . . High Security . | . . . . . . . Max Security . | . . . . . . . Squads Dispatched 8 | . 1 . . . 4 3 Investigation 3 | . . . . . 1 2 Extermination 1 | . . . . . . 1 Reinforcement 4 | . 1 . . . 3 . Assault . | . . . . . . . Garrison . | . . . . . . . Intercept . | . . . . . . . Construction Impeded . | . . . . . . . Haulers Reinforced . | . . . . . . . Stealth | -11 -10 -10 -10 -9 -8 -7 --------- Run | Scr Mat Min Exi Min Mat Fac Distress Signals 6 | . 1 . . . 4 1 Communications Jammed . | . . . . . . . Distress Signals . | . . . . . . . Times Spotted 96 | . 14 6 . 6 62 8 Peak Tracking Total 10 | . 10 3 . 3 5 6 Tactical Retreats 5 | . . . . 1 3 1 Traps | -11 -10 -10 -10 -9 -8 -7 ------- Run | Scr Mat Min Exi Min Mat Fac Traps Triggered 4 | . . . . 2 . 2 Indirectly . | . . . . . . . Trap Hack Attempts . | . . . . . . . Triggered . | . . . . . . . Disarmed . | . . . . . . . Reprogrammed . | . . . . . . . Reused . | . . . . . . . Traps Extracted . | . . . . . . . Installed . | . . . . . . . Triggered . | . . . . . . . Machines | -11 -10 -10 -10 -9 -8 -7 ---------- Run | Scr Mat Min Exi Min Mat Fac Machines Disabled 5 | . 2 . . . 3 . Max in Single Turn 1 | . 1 . . . 1 . Garrison Access 1 | . . . . . 1 . Machines Sabotaged . | . . . . . . . Garrisons Compromised . | . . . . . . . Overloaded Fab Kills . | . . . . . . . Fab Network Shutdowns . | . . . . . . . Hacking | -11 -10 -10 -10 -9 -8 -7 --------- Run | Scr Mat Min Exi Min Mat Fac Machines Accessed 21 | . 4 . 2 1 10 4 Terminals 13 | . 4 . . . 7 2 Fabricators 2 | . . . . . . 2 Repair Stations . | . . . . . . . Recycling Units . | . . . . . . . Scanalyzers 2 | . . . . . 2 . Garrison Access 1 | . . . . . 1 . Total Hacks 63 | . 15 . 5 1 34 8 Successful 44 | . 10 . 5 1 22 6 Failed 19 | . 5 . . . 12 2 Catastrophic 4 | . . . . . 4 . Database Lockouts . | . . . . . . . Manual 24 | . 6 . 1 . 16 1 Terminals 48 | . 15 . . . 29 4 Fabricators 4 | . . . . . . 4 Repair Stations . | . . . . . . . Recycling Units . | . . . . . . . Scanalyzers 4 | . . . . . 4 . Garrison Access 1 | . . . . . 1 . Terminal Hacks 28 | . 7 . 5 1 13 2 Record 5 | . . . 4 . 1 . Part Schematic 1 | . . . . . . 1 Robot Analysis 1 | . 1 . . . . . Prototype ID Bank 4 | . 1 . . . 2 1 Open Door 1 | . . . . 1 . . Branch Access Points 1 | . . . . . 1 . Alert Level 2 | . . . . . 2 . Unreport Threat 2 | . . . . . 2 . Locate Traps 4 | . 2 . . . 2 . Recall Reinforcements 1 | . . . . . 1 . Hauler Manifests 1 | . 1 . . . . . Zone Layout 4 | . 2 . . . 2 . EX-Prototype ID Bank 1 | . . . 1 . . . Fabricator Hacks 4 | . . . . . . 4 Load Schematic 2 | . . . . . . 2 Build 2 | . . . . . . 2 Repair Station Hacks . | . . . . . . . Recycling Unit Hacks . | . . . . . . . Scanalyzer 4 | . . . . . 4 . Insert Component 2 | . . . . . 2 . Analyze 2 | . . . . . 2 . Garrison Access Hacks 1 | . . . . . 1 . Seal Access 1 | . . . . . 1 . Unauthorized Hacks 7 | . 3 . . . 4 . Terminals 7 | . 3 . . . 4 . Track 2 | . 1 . . . 1 . Botnet 4 | . 2 . . . 2 . Disrupt 1 | . . . . . 1 . Fabricators . | . . . . . . . Repair Stations . | . . . . . . . Recycling Units . | . . . . . . . Scanalyzers . | . . . . . . . Garrison Access . | . . . . . . . Data Cores Recovered 1 | . 1 . . . . . Used 1 | . 1 . . . . . Hacking Detections 14 | . 3 . . . 7 4 Full Trace Events 2 | . . . . . 1 1 Feedback Events . | . . . . . . . Feedback Blocked . | . . . . . . . Robot Schematics Acquired . | . . . . . . . Robots Built . | . . . . . . . Matter . | . . . . . . . Time . | . . . . . . . Total Robot Build Rating . | . . . . . . . Part Schematics Acquired 3 | . . . . . 2 1 Parts Built 1 | . . . . . . 1 Matter 409 | . . . . . . 409 Time 153 | . . . . . . 153 Total Part Build Rating 3 | . . . . . . 3 Parts Repaired . | . . . . . . . Time . | . . . . . . . Parts Recycled . | . . . . . . . Recycled Matter . | . . . . . . . Retrieved Matter . | . . . . . . . Retrieved Components . | . . . . . . . Parts Scanalyzed 2 | . . . . . 2 . Part Schematics Acquired 2 | . . . . . 2 . Parts Damaged . | . . . . . . . Bothacking | -11 -10 -10 -10 -9 -8 -7 ------------ Run | Scr Mat Min Exi Min Mat Fac Used RIF Installer . | . . . . . . . Robots Hacked 1 | . . . . . . 1 Non-combat 1 | . . . . . . 1 Combat . | . . . . . . . Robot Hacks Applied 1 | . . . . . . 1 find_chute 1 | . . . . . . 1 Relay Couplers Released . | . . . . . . . Robots Rewired . | . . . . . . . Allies Hacked . | . . . . . . . Hacks Repelled . | . . . . . . . Allies | -11 -10 -10 -10 -9 -8 -7 -------- Run | Scr Mat Min Exi Min Mat Fac Total Allies . | . . . . . . . Largest Group . | . . . . . . . Highest-Rated Group . | . . . . . . . Highest-Rated Ally . | . . . . . . . Total Orders . | . . . . . . . Ally Attacks . | . . . . . . . Total Damage . | . . . . . . . Kills . | . . . . . . . Allies Corrupted . | . . . . . . . Allies Melted . | . . . . . . . Intel | -11 -10 -10 -10 -9 -8 -7 ------- Run | Scr Mat Min Exi Min Mat Fac Robot Analysis Total 1 | . 1 . . . . . Derelict Logs Recovered 2 | . . . . 2 . . Drone Launches . | . . . . . . . Drone Recoveries . | . . . . . . . Exploration | -11 -10 -10 -10 -9 -8 -7 ------------- Run | Scr Mat Min Exi Min Mat Fac Turns Passed 3847 | 71 433 204 466 284 2087 302 Spaces Moved 3034 | 47 349 159 512 253 1161 553 Core 14 | 12 2 . . . . . Treads 591 | . . . . . 591 . Legs 1181 | . . . 358 253 570 . Wheels 695 | 35 347 159 154 . . . Hover . | . . . . . . . Flight 553 | . . . . . . 553 Fastest Speed 34 | 50 90 90 90 90 90 34 Average Speed 95 | 88 93 90 90 90 130 34 Slowest Speed 250 | 100 250 90 90 90 210 37 Overloaded Moves . | . . . . . . . Propulsion Burnouts . | . . . . . . . Robots Hopped . | . . . . . . . Cave-ins Triggered . | . . . . . . . Exploration Rate (%) 47 | 3 48 24 78 73 90 18 Regions Visited 6 Branch Regions 3 Pre-discovered Areas 1 | . . . 1 . . . Known Exits Taken 1 | . . . . . 1 . Unknown Exits Taken 5 | 1 1 1 1 1 . . Scrap Searched 3 | . . 2 . 1 . . Spaces Dug 20 | . . . . . . 20 Terrain Destroyed 41 | . 18 . . . 3 20 Melee 20 | . . . . . . 20 Projectile 3 | . . . . . 3 . AOE 18 | . 18 . . . . . Actions | -11 -10 -10 -10 -9 -8 -7 --------- Run | Scr Mat Min Exi Min Mat Fac Total 3534 | 65 402 184 517 279 1458 629 Wait 100 | . 3 . . . 87 10 Move 3028 | 46 348 158 511 252 1160 553 Hop . | . . . . . . . Pick Up 49 | 7 10 1 2 3 23 3 Fast Attach 19 | 4 . . 2 2 11 . Attach 32 | 3 6 1 . 1 7 14 Detach . | . . . . . . . Swap 16 | . 3 3 . 2 6 2 Drop 43 | . 2 2 2 3 17 17 Fire 217 | 5 30 19 . 16 147 . Melee 30 | . . . . . . 30 Ram . | . . . . . . . Kick . | . . . . . . . Crush . | . . . . . . . Escape Stasis . | . . . . . . . Rewire . | . . . . . . . Trap . | . . . . . . . Miscellaneous . | . . . . . . . Route ------- -11/Scrapyard -10/Materials (discovered 2 exits: [*Mat] / [*Min]) -10/Mines -10/Exiles -9/Mines -8/Materials (discovered 3 exits: *Fac x3) -7/Factory History --------- Turn | Location | Event 15 | -11/Scrapyard | Discovered new exit (range 16) 72 | -11/Scrapyard | Entered Materials 132 | -10/Materials | Discovered new exit (range 7) 158 | -10/Materials | Discovered new exit (range 7) 221 | -10/Materials | Core integrity fell below 50% 244 | -10/Materials | Destroyed 9 combat bots 245 | -10/Materials | Lost 6 parts (1p2n3w) 311 | -10/Materials | Build established: Mutant 505 | -10/Materials | Entered Mines 705 | -10/Mines | Deemed a non-threat by the Exiles lab entrance 705 | -10/Mines | Discovered new exit (range 5) 709 | -10/Mines | Entered Exiles 734 | -10/Exiles | Met 8R-AWN 746 | -10/Exiles | Met EX-HEX 783 | -10/Exiles | Met EX-DEC 789 | -10/Exiles | Learned location of Zion (-6) 805 | -10/Exiles | Met EX-BIN 819 | -10/Exiles | Aligned with FarCom system 820 | -10/Exiles | Given EX-Vault access code 841 | -10/Exiles | Opened EX-Vault 849 | -10/Exiles | Found Potential Leg 852 | -10/Exiles | Found Potential Leg 854 | -10/Exiles | Found Modified TNC 859 | -10/Exiles | Found AWS/Autocannon 880 | -10/Exiles | Warned to stay clear of 0b10 Research branches 959 | -10/Exiles | Discovered new exit (range 10) 1029 | -10/Exiles | Visited The Gauntlet 1175 | -10/Exiles | Stole three prototypes: Potential Leg, Modified TNC, AWS/Autocannon 1175 | -10/Exiles | Entered Mines 1299 | -9/Mines | Learned 2 Materials zone layouts 1339 | -9/Mines | Met a Derelict who couldn't figure out how to use a Trap Extractor 1438 | -9/Mines | Learned Materials trap positions 1446 | -9/Mines | Discovered new exit (range 11) 1459 | -9/Mines | Entered Materials 1459 | -8/Materials | Evolved 4 slots: Propulsion x2, Utility x2 1460 | -8/Materials | Identified exit to Factory 1461 | -8/Materials | Loaded intel: 19 trap records 1869 | -8/Materials | Discovered exit to Factory (range 8) 2834 | -8/Materials | Discovered exit to Factory (range 16) 3347 | -8/Materials | Build established: Hauler-Mutant 3546 | -8/Materials | Entered Factory 3546 | -7/Factory | Evolved 2 slots: Utility x2 3548 | -7/Factory | FarCom data flow suspended 3831 | -7/Factory | Fabricated Aerolev Unit? 3848 | -7/Factory | Lost 4 parts (1p1n2u) 3848 | -7/Factory | Self-destructed Last Messages --------------- 03817_ A bubble of electromagnetic force engulfs the area. 03817_ K-01 Serf destroyed. 03817_ Fusion Modulator explodes. 03817_ Chain reaction triggered in Lgt. Ion Engine. 03817_ Fabricator disabled. 03817_ Adv. Sensor Array destroyed. 03817_ Cesium-ion Thruster destroyed. 03817_ Lgt. Nuclear Core destroyed. 03817_ Hacking Suite destroyed. 03817_ Fusion Modulator explodes. 03817_ K-01 Serf destroyed. 03817_ K-01 Serf collects debris. 03821_ U-05 Engineer lays Concrete. 03830_ Connecting with Terminal... 03831_ >> FABRICATOR: Completed Aerolev Unit? 03832_ Connecting with Terminal... 03832_ ALERT: Suspicious activity at Terminal F003. Dispatching Investigation squad. 03836_ Acquired Aerolev Unit. 03845_ Slug penetrates Wall. Map ----- +----------------------------------------------------+ | ???????????# # #?????# ""# #?? | | ???????????# """" ! # #????## ""# #?? | | ???????????# """" # ######" T"# #?? | | ???????????# """" ! # # """# #?? | | ???????????# """" + # "" # #?? | | ???????????# [ # # ! # ### | | ???????????########### ######## ## | | ?????????????????????# #??????# ## | | ????????????????############# #??????? ?# | | ????????????????# ! # ##########+#### | | ????????????????# * # # | | ????????????????#! """ + # | | ????????????????# """ # + | | ????????????????# """ # # | | ????????????????# # # | | ????????????????############################+#### | | ??????????????????#?#######???##?????????# ## | | ??????????????????# ?? #?????????# *** ## | | ??????????????????# """ #?????????# *** ## | | ??????????????????# Y" ########### *** ### | | ??????????????????# """ # # # | | ??????????????????# # # # " | | ??????????????????# """ # """ #""" # " | | ??????????????????# """"" # """"" #"F" # T | | ??????????????????# """"" # """"" #" " " | | ??????????????????# @ # #""" # " | | ??????????????????# # [#""" !# | | ??????????????????# # # # | | ??????????????????# ###+######"###### | | ??????????????????###########+## #??###???#### | | ??????????????? ############# | | ??????????????? | | ??????????????? ########## | | ???????????????? ############### #??##????? | | ???????????????????????????????# #????????? | | ???????????????????????????????# #????????? | | ???????????????????????????????# #????????? | | ???????????????????????????????# #????????? | | ???????????????????????????????# #????????? | | ???????????????????????????????# ???????? | | ??????????????????????????????? ???????? | | ??????????????????????????????? ??????? | | ??????????????????????????????? ????????? | | ??????????????????????????????? ??????????? | | ??????????????????????????????? ####?????????????? | | ?????????????????????????????????????????????????? | | ?????????????????????????????????????????????????? | | ?????????????????????????????????????????????????? | | ?????????????????????????????????????????????????? | | ?????????????????????????????????????????????????? | +----------------------------------------------------+ Best States ------------- Heat Dissipation 45 Energy Generation 14 Energy Capacity 250 Matter Stores 300 Matter Capacity 300 Sight Range 16 Robot Scan Range 16 Terrain Scan Density 10 Armor Coverage 225 Resistance: EM 15 Evasion (%) 63 Recoil Reduction 4 Offensive Hacking 30 Defensive Hacking 10 Item Schematics ----------------- Hacking Suite | -8/Materials | Scanalyzed Aerolev Unit | -8/Materials | Scanalyzed Angular Momentum Engine | -7/Factory | Hacked Robot Schematics ------------------ None Fabricated ------------ Aerolev Unit | x1 | -7/Factory Alien Tech Used ----------------- None Achievements -------------- None Challenges ------------ None Game ------ Seed DispersionMiniFlakker Manual? 0 Play Time 00:40:50 Cumulative 774.9 hours Start 2020.09.05 @ 18:03:44 End 2020.09.05 @ 18:45:44 Sessions 1 Manual Loads 0 Difficulty Rogue Special Mode None Game No. 413 Rogue 413 Adventurer 0 Explorer 0 Win Type - Total 63 Types 34/5/13/6/1/1/3 Lore% 91 Gallery% 89 Achievement% 75 Wizard Run 0 Options --------- ASCII 0 Keyboard 0 Movement Mouse Keybinds 0 Fullscreen 0 Font 32/Smallcaps Map View 76x50 Tactical HUD 1 Map Filters NONE Filters NONE Steam 0 RUN: 92f5f11d-5003-4502-b7d2-736d3fdbb850